[Event "Late-Titled-Tuesday-Blitz-May-07-2024"]
[Site "Chess.com"]
[Date "2024.05.07"]
[Round "1"]
[White "subham777"]
[Black "Mops_2004"]
[Result "0-1"]
[WhiteElo "2463"]
[BlackElo "2805"]
[TimeControl "180+1"]
[EndTime "14:07:46 PDT"]
[Termination "Mops_2004 won on time"]

1. e4 {[%clk 0:03:00.4]} 1... c5 {[%clk 0:02:59.9]} 2. Nf3 {[%clk 0:03:00.2]}
2... Nc6 {[%clk 0:03:00]} 3. Bb5 {[%clk 0:03:00]} 3... e6 {[%clk 0:02:59.8]} 4.
O-O {[%clk 0:02:59.8]} 4... Nge7 {[%clk 0:02:59.3]} 5. c3 {[%clk 0:02:59.9]}
5... a6 {[%clk 0:02:57.7]} 6. Ba4 {[%clk 0:02:59.3]} 6... b5 {[%clk 0:02:57.9]}
7. Bc2 {[%clk 0:02:59.9]} 7... Bb7 {[%clk 0:02:57.9]} 8. d4 {[%clk 0:02:59.8]}
8... cxd4 {[%clk 0:02:57.9]} 9. Nxd4 {[%clk 0:02:59.1]} 9... Ng6 {[%clk
0:02:49]} 10. Be3 {[%clk 0:02:47.3]} 10... Rc8 {[%clk 0:02:46.7]} 11. a4 {[%clk
0:02:39.1]} 11... b4 {[%clk 0:02:46.2]} 12. f4 {[%clk 0:02:30.8]} 12... Be7
{[%clk 0:02:35.7]} 13. Kh1 {[%clk 0:02:27.8]} 13... O-O {[%clk 0:02:35.1]} 14.
Qh5 {[%clk 0:02:24.7]} 14... Bf6 {[%clk 0:01:45.3]} 15. Bd3 {[%clk 0:01:56.7]}
15... bxc3 {[%clk 0:01:43.8]} 16. bxc3 {[%clk 0:01:55.5]} 16... e5 {[%clk
0:01:30.7]} 17. Nxc6 {[%clk 0:01:28]} 17... dxc6 {[%clk 0:01:30.3]} 18. Bc4
{[%clk 0:01:22.8]} 18... exf4 {[%clk 0:01:30.1]} 19. Bxf4 {[%clk 0:01:22]} 19...
Nxf4 {[%clk 0:01:27.1]} 20. Rxf4 {[%clk 0:01:21.9]} 20... Qd6 {[%clk 0:01:07]}
21. Rf1 {[%clk 0:01:13.3]} 21... c5 {[%clk 0:01:04.7]} 22. Bd5 {[%clk
0:01:08.9]} 22... Bxd5 {[%clk 0:01:04.3]} 23. exd5 {[%clk 0:01:09.8]} 23... Rcd8
{[%clk 0:00:49]} 24. Rd1 {[%clk 0:00:43]} 24... Rfe8 {[%clk 0:00:48.4]} 25. Na3
{[%clk 0:00:34]} 25... Re5 {[%clk 0:00:42.8]} 26. Qf3 {[%clk 0:00:23.1]} 26...
Rxd5 {[%clk 0:00:43]} 27. Rf1 {[%clk 0:00:14.7]} 27... Rd3 {[%clk 0:00:42]} 28.
Qf5 {[%clk 0:00:14.3]} 28... Rxc3 {[%clk 0:00:38]} 29. Qh5 {[%clk 0:00:10.1]}
29... g6 {[%clk 0:00:35.9]} 30. Qh6 {[%clk 0:00:08.1]} 30... Bg7 {[%clk
0:00:29]} 31. Qg5 {[%clk 0:00:07.3]} 31... h6 {[%clk 0:00:25.9]} 32. Qg4 {[%clk
0:00:06.9]} 32... h5 {[%clk 0:00:21.9]} 33. Qe2 {[%clk 0:00:05.5]} 33... Rd3
{[%clk 0:00:14.5]} 34. Nc4 {[%clk 0:00:04]} 34... Qd5 {[%clk 0:00:07.9]} 35.
Rac1 {[%clk 0:00:04.5]} 35... Rd4 {[%clk 0:00:08.1]} 36. Nb6 {[%clk 0:00:03.7]}
36... Qb7 {[%clk 0:00:08.1]} 37. Nc4 {[%clk 0:00:03.4]} 37... Rd3 {[%clk
0:00:05]} 38. Qf2 {[%clk 0:00:03.8]} 38... Bd4 {[%clk 0:00:04.3]} 39. Qf4 {[%clk
0:00:03]} 39... Bg7 {[%clk 0:00:03.7]} 40. Na5 {[%clk 0:00:01.4]} 40... Qd5
{[%clk 0:00:03.9]} 41. Nc4 {[%clk 0:00:01.5]} 41... Rd4 {[%clk 0:00:04.1]} 42.
Qf2 {[%clk 0:00:01]} 42... Rxc4 {[%clk 0:00:04.3]} 43. Rce1 {[%clk 0:00:01.9]}
43... Rd4 {[%clk 0:00:04.1]} 44. Rb1 {[%clk 0:00:01.7]} 44... Rd2 {[%clk
0:00:04.1]} 45. Qg1 {[%clk 0:00:01.7]} 45... Bd4 {[%clk 0:00:03.3]} 0-1

[Event "Late-Titled-Tuesday-Blitz-May-07-2024"]
[Site "Chess.com"]
[Date "2024.05.07"]
[Round "1"]
[White "Mackster23"]
[Black "FabianoCaruana"]
[Result "1-0"]
[WhiteElo "2571"]
[BlackElo "3075"]
[TimeControl "180+1"]
[EndTime "14:07:47 PDT"]
[Termination "Mackster23 won by resignation"]

1. e4 {[%clk 0:03:00.9]} 1... c5 {[%clk 0:02:59.3]} 2. Nf3 {[%clk 0:03:00.7]}
2... Nc6 {[%clk 0:03:00]} 3. d4 {[%clk 0:03:00.6]} 3... cxd4 {[%clk 0:03:00]} 4.
Nxd4 {[%clk 0:03:01.5]} 4... Nf6 {[%clk 0:03:00.5]} 5. Nc3 {[%clk 0:03:01.7]}
5... e5 {[%clk 0:03:01.1]} 6. Ndb5 {[%clk 0:03:02]} 6... d6 {[%clk 0:03:01.7]}
7. Bg5 {[%clk 0:03:01.9]} 7... a6 {[%clk 0:03:02.1]} 8. Na3 {[%clk 0:03:02.3]}
8... b5 {[%clk 0:03:02.8]} 9. Nab1 {[%clk 0:03:02.8]} 9... Ne7 {[%clk
0:02:58.6]} 10. Nd2 {[%clk 0:02:41.6]} 10... Bb7 {[%clk 0:02:53.7]} 11. Bd3
{[%clk 0:01:52.9]} 11... Ng6 {[%clk 0:02:52.9]} 12. O-O {[%clk 0:01:50.1]} 12...
Be7 {[%clk 0:02:52.4]} 13. Bxf6 {[%clk 0:01:33.7]} 13... Bxf6 {[%clk 0:02:51.3]}
14. a4 {[%clk 0:01:34.5]} 14... b4 {[%clk 0:02:40.1]} 15. Nd5 {[%clk 0:01:34.9]}
15... Bxd5 {[%clk 0:02:38.7]} 16. exd5 {[%clk 0:01:35.8]} 16... O-O {[%clk
0:02:34.6]} 17. Qh5 {[%clk 0:01:31.7]} 17... Bg5 {[%clk 0:02:22.2]} 18. Ne4
{[%clk 0:01:02.6]} 18... Bh6 {[%clk 0:02:19.2]} 19. Qf5 {[%clk 0:01:00.6]} 19...
Re8 {[%clk 0:02:13.8]} 20. a5 {[%clk 0:00:57]} 20... Nf4 {[%clk 0:02:08.5]} 21.
Ng3 {[%clk 0:00:28.2]} 21... g6 {[%clk 0:02:05.3]} 22. Qe4 {[%clk 0:00:27.1]}
22... f5 {[%clk 0:02:02.9]} 23. Qxb4 {[%clk 0:00:26.8]} 23... e4 {[%clk
0:02:00.8]} 24. Bc4 {[%clk 0:00:26.7]} 24... Bg7 {[%clk 0:01:59.7]} 25. c3
{[%clk 0:00:26.1]} 25... Be5 {[%clk 0:01:53.7]} 26. Ne2 {[%clk 0:00:25.4]} 26...
Nxg2 {[%clk 0:01:38.8]} 27. Kxg2 {[%clk 0:00:24.2]} 27... Qg5+ {[%clk
0:01:38.7]} 28. Kh1 {[%clk 0:00:20.6]} 28... Qh4 {[%clk 0:01:37.5]} 29. Ng3
{[%clk 0:00:18.4]} 29... Rab8 {[%clk 0:01:32.1]} 30. Qa4 {[%clk 0:00:16.4]}
30... f4 {[%clk 0:00:47.6]} 31. Nxe4 {[%clk 0:00:16.2]} 31... Qh3 {[%clk
0:00:48.2]} 32. f3 {[%clk 0:00:15.2]} 32... Rf8 {[%clk 0:00:44.2]} 33. Rf2
{[%clk 0:00:14.4]} 33... Kh8 {[%clk 0:00:41.3]} 34. Bf1 {[%clk 0:00:14.4]} 34...
Qh4 {[%clk 0:00:41.4]} 35. Bxa6 {[%clk 0:00:13.6]} 35... g5 {[%clk 0:00:39.2]}
36. Be2 {[%clk 0:00:13.3]} 36... g4 {[%clk 0:00:38.4]} 37. Rg1 {[%clk
0:00:06.7]} 37... g3 {[%clk 0:00:37]} 38. Nxg3 {[%clk 0:00:06.8]} 38... Rg8
{[%clk 0:00:26.6]} 39. Bd3 {[%clk 0:00:03.9]} 39... Qh3 {[%clk 0:00:12.8]} 40.
Ne2 {[%clk 0:00:03.8]} 40... Rxg1+ {[%clk 0:00:12.5]} 41. Nxg1 {[%clk
0:00:04.7]} 41... Qh4 {[%clk 0:00:12.1]} 42. Qc2 {[%clk 0:00:04.8]} 42... Rg8
{[%clk 0:00:11.3]} 43. Rg2 {[%clk 0:00:04.8]} 43... Re8 {[%clk 0:00:11.9]} 44.
Be4 {[%clk 0:00:04.2]} 44... Bf6 {[%clk 0:00:12.2]} 45. Rg4 {[%clk 0:00:04.1]}
45... Qe1 {[%clk 0:00:11.8]} 46. Qg2 {[%clk 0:00:04.8]} 46... Qc1 {[%clk
0:00:10.4]} 47. b4 {[%clk 0:00:04.8]} 47... Qxc3 {[%clk 0:00:09.6]} 48. Rxf4
{[%clk 0:00:04.9]} 48... Bd4 {[%clk 0:00:09.4]} 49. Rh4 {[%clk 0:00:05.2]} 49...
Re7 {[%clk 0:00:09.1]} 50. Qg6 {[%clk 0:00:05]} 1-0

[Event "Late-Titled-Tuesday-Blitz-May-07-2024"]
[Site "Chess.com"]
[Date "2024.05.07"]
[Round "1"]
[White "zverr1"]
[Black "deathadder96"]
[Result "0-1"]
[WhiteElo "2501"]
[BlackElo "2851"]
[TimeControl "180+1"]
[EndTime "14:07:48 PDT"]
[Termination "deathadder96 won on time"]

1. e4 {[%clk 0:03:00.7]} 1... c5 {[%clk 0:02:59.3]} 2. Nf3 {[%clk 0:02:59.2]}
2... d6 {[%clk 0:02:59.5]} 3. Nc3 {[%clk 0:02:57]} 3... Nf6 {[%clk 0:02:57.1]}
4. e5 {[%clk 0:02:57.1]} 4... dxe5 {[%clk 0:02:57.6]} 5. Nxe5 {[%clk 0:02:58]}
5... e6 {[%clk 0:02:57.8]} 6. Bb5+ {[%clk 0:02:56.9]} 6... Nbd7 {[%clk
0:02:57.9]} 7. d4 {[%clk 0:02:56.5]} 7... a6 {[%clk 0:02:54.3]} 8. Bxd7+ {[%clk
0:02:56.3]} 8... Nxd7 {[%clk 0:02:52.6]} 9. Qf3 {[%clk 0:02:40.5]} 9... Nxe5
{[%clk 0:02:48.2]} 10. dxe5 {[%clk 0:02:40.5]} 10... Be7 {[%clk 0:02:46.8]} 11.
Bf4 {[%clk 0:02:31.2]} 11... O-O {[%clk 0:02:44.1]} 12. O-O {[%clk 0:02:26.8]}
12... Qb6 {[%clk 0:02:40.4]} 13. Rab1 {[%clk 0:02:02.7]} 13... Bd7 {[%clk
0:02:40.3]} 14. Rfd1 {[%clk 0:01:54.8]} 14... Bc6 {[%clk 0:02:40.4]} 15. Qe3
{[%clk 0:01:51]} 15... Rad8 {[%clk 0:02:30.1]} 16. b3 {[%clk 0:01:50.3]} 16...
Rd4 {[%clk 0:02:06.9]} 17. Bg5 {[%clk 0:01:36.6]} 17... Bxg5 {[%clk 0:02:00.2]}
18. Qxg5 {[%clk 0:01:36.3]} 18... h6 {[%clk 0:02:00.4]} 19. Qe3 {[%clk
0:01:30.3]} 19... Rfd8 {[%clk 0:02:00.4]} 20. f3 {[%clk 0:01:21.9]} 20... R8d7
{[%clk 0:01:34.9]} 21. Re1 {[%clk 0:01:08.7]} 21... Qd8 {[%clk 0:01:33.6]} 22.
Re2 {[%clk 0:01:04.8]} 22... b5 {[%clk 0:01:32.2]} 23. Rbe1 {[%clk 0:00:40.8]}
23... b4 {[%clk 0:01:23.9]} 24. Ne4 {[%clk 0:00:36.9]} 24... Bxe4 {[%clk
0:01:23.4]} 25. fxe4 {[%clk 0:00:37.8]} 25... a5 {[%clk 0:01:00.9]} 26. h3
{[%clk 0:00:31.3]} 26... Qc7 {[%clk 0:00:55.8]} 27. Qg3 {[%clk 0:00:16.9]} 27...
c4 {[%clk 0:00:55.2]} 28. Kh2 {[%clk 0:00:14.7]} 28... c3 {[%clk 0:00:53.4]} 29.
Rf1 {[%clk 0:00:11.5]} 29... Rd2 {[%clk 0:00:52.8]} 30. Rff2 {[%clk 0:00:11.2]}
30... Rd8 {[%clk 0:00:51.2]} 31. Qf4 {[%clk 0:00:10.2]} 31... Rxe2 {[%clk
0:00:47.5]} 32. Rxe2 {[%clk 0:00:10.4]} 32... Rb8 {[%clk 0:00:47.3]} 33. Re3
{[%clk 0:00:05.8]} 33... Rb5 {[%clk 0:00:45.8]} 34. Rd3 {[%clk 0:00:05.3]} 34...
Rxe5 {[%clk 0:00:45]} 35. Rd4 {[%clk 0:00:02.2]} 35... g5 {[%clk 0:00:39.4]} 36.
Qg3 {[%clk 0:00:02.3]} 36... Kg7 {[%clk 0:00:39.6]} 37. Kg1 {[%clk 0:00:02.4]}
37... Qc5 {[%clk 0:00:38.5]} 38. Qe3 {[%clk 0:00:01.8]} 38... f5 {[%clk
0:00:26.7]} 39. Rd7+ {[%clk 0:00:01.5]} 39... Kf6 {[%clk 0:00:27.3]} 40. Qxc5
{[%clk 0:00:01.3]} 40... Rxc5 {[%clk 0:00:28.2]} 41. exf5 {[%clk 0:00:01.5]}
41... Rxf5 {[%clk 0:00:24.6]} 42. Ra7 {[%clk 0:00:01.2]} 42... Rd5 {[%clk
0:00:24.7]} 43. Kf1 {[%clk 0:00:01.2]} 43... Rd1+ {[%clk 0:00:24.2]} 44. Kf2
{[%clk 0:00:00.9]} 44... Rd2+ {[%clk 0:00:25.1]} 45. Kf3 {[%clk 0:00:01.8]}
45... Rxc2 {[%clk 0:00:25]} 46. Rxa5 {[%clk 0:00:02.2]} 46... Rd2 {[%clk
0:00:25.4]} 47. Rb5 {[%clk 0:00:01.2]} 47... c2 {[%clk 0:00:25.7]} 48. Rc5
{[%clk 0:00:01.6]} 48... Rd3+ {[%clk 0:00:25.6]} 49. Ke2 {[%clk 0:00:01.9]}
49... Rc3 {[%clk 0:00:25.3]} 0-1

[Event "Late-Titled-Tuesday-Blitz-May-07-2024"]
[Site "Chess.com"]
[Date "2024.05.07"]
[Round "1"]
[White "Romkachess"]
[Black "chess_sharparchitect"]
[Result "0-1"]
[WhiteElo "2607"]
[BlackElo "2281"]
[TimeControl "180+1"]
[EndTime "14:07:48 PDT"]
[Termination "chess_sharparchitect won by resignation"]

1. e4 {[%clk 0:02:50.8]} 1... c5 {[%clk 0:02:59.5]} 2. Nf3 {[%clk 0:02:42.4]}
2... d6 {[%clk 0:02:59.2]} 3. d4 {[%clk 0:02:41.6]} 3... cxd4 {[%clk 0:02:59.4]}
4. Nxd4 {[%clk 0:02:41.3]} 4... Nf6 {[%clk 0:03:00]} 5. Nc3 {[%clk 0:02:40.9]}
5... a6 {[%clk 0:03:00.6]} 6. Nb3 {[%clk 0:02:39.2]} 6... e5 {[%clk 0:02:35.5]}
7. Be2 {[%clk 0:02:36.4]} 7... Be7 {[%clk 0:02:31.8]} 8. Be3 {[%clk 0:02:32.7]}
8... O-O {[%clk 0:02:30.2]} 9. g4 {[%clk 0:02:27]} 9... Be6 {[%clk 0:02:18.8]}
10. h4 {[%clk 0:02:23.8]} 10... b5 {[%clk 0:02:07.3]} 11. g5 {[%clk 0:02:18.9]}
11... Ne8 {[%clk 0:01:58.5]} 12. Nd5 {[%clk 0:02:17.5]} 12... Nd7 {[%clk
0:01:51.8]} 13. Qd2 {[%clk 0:02:14.1]} 13... Bxd5 {[%clk 0:01:42.9]} 14. exd5
{[%clk 0:02:14.2]} 14... f5 {[%clk 0:01:38.5]} 15. gxf6 {[%clk 0:02:13]} 15...
Ndxf6 {[%clk 0:01:31]} 16. O-O-O {[%clk 0:02:06.5]} 16... Kh8 {[%clk 0:01:26.1]}
17. f3 {[%clk 0:01:59.5]} 17... Nc7 {[%clk 0:01:25.4]} 18. f4 {[%clk 0:01:16.9]}
18... exf4 {[%clk 0:01:10.9]} 19. Bxf4 {[%clk 0:01:07]} 19... Nfxd5 {[%clk
0:00:58.1]} 20. Bg5 {[%clk 0:01:05.3]} 20... Bf6 {[%clk 0:00:50.3]} 21. Kb1
{[%clk 0:00:55.4]} 21... Rc8 {[%clk 0:00:40.6]} 22. Bd3 {[%clk 0:00:53.9]} 22...
Nb6 {[%clk 0:00:23.7]} 23. Qg2 {[%clk 0:00:41.5]} 23... Nc4 {[%clk 0:00:22.7]}
24. Qe4 {[%clk 0:00:41.3]} 24... g6 {[%clk 0:00:19.2]} 25. h5 {[%clk 0:00:27.7]}
25... d5 {[%clk 0:00:19.5]} 26. Qg4 {[%clk 0:00:17]} 26... Bxg5 {[%clk
0:00:17.5]} 27. hxg6 {[%clk 0:00:17.4]} 27... h6 {[%clk 0:00:17.4]} 28. Nd4
{[%clk 0:00:13.3]} 28... Qf6 {[%clk 0:00:16]} 29. g7+ {[%clk 0:00:13.1]} 29...
Kxg7 {[%clk 0:00:14.3]} 30. Nf5+ {[%clk 0:00:13]} 30... Kh8 {[%clk 0:00:13.3]}
31. c3 {[%clk 0:00:13.4]} 31... Ne6 {[%clk 0:00:11.3]} 32. Rdf1 {[%clk
0:00:05.8]} 32... Nf4 {[%clk 0:00:11.1]} 33. Bc2 {[%clk 0:00:04.6]} 33... Nd2+
{[%clk 0:00:10.9]} 34. Ka1 {[%clk 0:00:04.2]} 34... Nxf1 {[%clk 0:00:11.2]} 35.
Rxf1 {[%clk 0:00:04.5]} 35... b4 {[%clk 0:00:09.3]} 36. Rxf4 {[%clk 0:00:04.5]}
36... Bxf4 {[%clk 0:00:08.9]} 37. Qxf4 {[%clk 0:00:04.6]} 37... bxc3 {[%clk
0:00:08.6]} 38. b3 {[%clk 0:00:05.2]} 38... Rce8 {[%clk 0:00:07.8]} 39. a4
{[%clk 0:00:04.6]} 39... Re1+ {[%clk 0:00:07.4]} 40. Ka2 {[%clk 0:00:05.3]}
40... Re5 {[%clk 0:00:06.7]} 41. a5 {[%clk 0:00:03.2]} 41... Rxf5 {[%clk
0:00:06.8]} 42. Bxf5 {[%clk 0:00:03.7]} 42... Qxf5 {[%clk 0:00:07.2]} 43. Qxh6+
{[%clk 0:00:04.1]} 43... Kg8 {[%clk 0:00:07.5]} 44. Qxa6 {[%clk 0:00:04]} 44...
Qf2+ {[%clk 0:00:07.1]} 45. Ka3 {[%clk 0:00:04.9]} 45... Qb2+ {[%clk 0:00:06.8]}
46. Ka4 {[%clk 0:00:05.2]} 46... Rf4+ {[%clk 0:00:06.5]} 47. Kb5 {[%clk
0:00:04.7]} 47... Qxb3+ {[%clk 0:00:06.8]} 48. Kc6 {[%clk 0:00:05.6]} 48... Qc4+
{[%clk 0:00:06.8]} 49. Qxc4 {[%clk 0:00:05.9]} 49... Rxc4+ {[%clk 0:00:06.9]}
50. Kxd5 {[%clk 0:00:06.8]} 50... Ra4 {[%clk 0:00:07.2]} 0-1

[Event "Late-Titled-Tuesday-Blitz-May-07-2024"]
[Site "Chess.com"]
[Date "2024.05.07"]
[Round "1"]
[White "JG-17"]
[Black "ElCoachRene"]
[Result "1-0"]
[WhiteElo "2577"]
[BlackElo "1979"]
[TimeControl "180+1"]
[EndTime "14:07:48 PDT"]
[Termination "JG-17 won on time"]

1. e4 {[%clk 0:02:50.6]} 1... Nc6 {[%clk 0:02:59.8]} 2. Nc3 {[%clk 0:02:43.6]}
2... Nf6 {[%clk 0:02:58.8]} 3. Nf3 {[%clk 0:02:40.4]} 3... d5 {[%clk 0:02:58.3]}
4. e5 {[%clk 0:02:38.7]} 4... d4 {[%clk 0:02:58.3]} 5. exf6 {[%clk 0:02:37.9]}
5... dxc3 {[%clk 0:02:59.1]} 6. fxg7 {[%clk 0:02:38.1]} 6... cxd2+ {[%clk
0:03:00]} 7. Qxd2 {[%clk 0:02:38.3]} 7... Qxd2+ {[%clk 0:02:59.9]} 8. Bxd2
{[%clk 0:02:39.2]} 8... Bxg7 {[%clk 0:03:00]} 9. O-O-O {[%clk 0:02:40]} 9... Bg4
{[%clk 0:02:59.3]} 10. Bf4 {[%clk 0:02:36.1]} 10... e5 {[%clk 0:02:51.4]} 11.
Bg5 {[%clk 0:02:27.6]} 11... f6 {[%clk 0:02:47.4]} 12. Bh4 {[%clk 0:02:25]}
12... e4 {[%clk 0:02:29.3]} 13. Re1 {[%clk 0:02:24.7]} 13... Bh6+ {[%clk
0:02:13.6]} 14. Kb1 {[%clk 0:02:22.1]} 14... O-O-O {[%clk 0:02:13.1]} 15. Ng1
{[%clk 0:02:12.1]} 15... Bd2 {[%clk 0:01:47.2]} 16. Rxe4 {[%clk 0:02:11.7]}
16... Bg5 {[%clk 0:01:46.8]} 17. Be2 {[%clk 0:01:49.5]} 17... Bxe2 {[%clk
0:01:36.5]} 18. Nxe2 {[%clk 0:01:50.4]} 18... Rhe8 {[%clk 0:01:22.5]} 19. Rxe8
{[%clk 0:01:36.1]} 19... Rxe8 {[%clk 0:01:21.7]} 20. Bxg5 {[%clk 0:01:36.8]}
20... Rxe2 {[%clk 0:01:17.2]} 21. Be3 {[%clk 0:01:33.7]} 21... Ne5 {[%clk
0:01:10.9]} 22. Kc1 {[%clk 0:01:30.3]} 22... Ng4 {[%clk 0:00:52.9]} 23. Bd4
{[%clk 0:01:23.3]} 23... Nxf2 {[%clk 0:00:47.1]} 24. Rf1 {[%clk 0:01:22.4]}
24... Ne4 {[%clk 0:00:36.1]} 25. Rg1 {[%clk 0:01:15.1]} 25... f5 {[%clk
0:00:30.3]} 26. h3 {[%clk 0:01:08.1]} 26... a6 {[%clk 0:00:28.9]} 27. b3 {[%clk
0:00:53]} 27... c6 {[%clk 0:00:27.8]} 28. a4 {[%clk 0:00:51.7]} 28... Kd7 {[%clk
0:00:26.3]} 29. Be5 {[%clk 0:00:47.3]} 29... Ke6 {[%clk 0:00:24.8]} 30. Bf4
{[%clk 0:00:47.8]} 30... Rf2 {[%clk 0:00:22.9]} 31. Be3 {[%clk 0:00:47.4]} 31...
Re2 {[%clk 0:00:21.8]} 32. Bf4 {[%clk 0:00:47.9]} 32... Nc3 {[%clk 0:00:20.6]}
33. g4 {[%clk 0:00:42.1]} 33... fxg4 {[%clk 0:00:18.3]} 34. hxg4 {[%clk
0:00:43]} 34... Rf2 {[%clk 0:00:17.7]} 35. Re1+ {[%clk 0:00:41.9]} 35... Kd7
{[%clk 0:00:15.9]} 36. Bd2 {[%clk 0:00:39.8]} 36... Nd5 {[%clk 0:00:13.9]} 37.
Rh1 {[%clk 0:00:40.2]} 37... Rf7 {[%clk 0:00:12.7]} 38. g5 {[%clk 0:00:39.7]}
38... Ke6 {[%clk 0:00:11.2]} 39. Rh6+ {[%clk 0:00:40.2]} 39... Kf5 {[%clk
0:00:10.6]} 40. Rh2 {[%clk 0:00:38.1]} 40... Kg6 {[%clk 0:00:09.1]} 41. c4
{[%clk 0:00:36.8]} 41... Ne7 {[%clk 0:00:07.8]} 42. Re2 {[%clk 0:00:34.5]} 42...
Nf5 {[%clk 0:00:07.6]} 43. Re6+ {[%clk 0:00:34.3]} 43... Kh5 {[%clk 0:00:06.8]}
44. Re8 {[%clk 0:00:28.9]} 44... Kg4 {[%clk 0:00:07.1]} 45. Kc2 {[%clk
0:00:26.6]} 45... Kf3 {[%clk 0:00:06.7]} 46. a5 {[%clk 0:00:25.8]} 46... Kg4
{[%clk 0:00:05.7]} 47. Rb8 {[%clk 0:00:25.2]} 47... Nd4+ {[%clk 0:00:04.9]} 48.
Kc3 {[%clk 0:00:24.5]} 48... Ne2+ {[%clk 0:00:04.2]} 49. Kb4 {[%clk 0:00:24.6]}
49... Nd4 {[%clk 0:00:04.5]} 50. Bc3 {[%clk 0:00:23.3]} 50... Nc2+ {[%clk
0:00:04.2]} 51. Kc5 {[%clk 0:00:23.2]} 51... Ne3 {[%clk 0:00:03.6]} 52. Kb6
{[%clk 0:00:22.7]} 52... Nf5 {[%clk 0:00:03.4]} 53. Bf6 {[%clk 0:00:21.8]} 53...
Nd6 {[%clk 0:00:02]} 54. c5 {[%clk 0:00:22.4]} 54... Nb5 {[%clk 0:00:01.4]} 55.
Rxb7 {[%clk 0:00:22.5]} 55... Rxb7+ {[%clk 0:00:00.3]} 56. Kxb7 {[%clk
0:00:23.4]} 1-0

[Event "Late-Titled-Tuesday-Blitz-May-07-2024"]
[Site "Chess.com"]
[Date "2024.05.07"]
[Round "1"]
[White "GP9isback23"]
[Black "miraitrunks"]
[Result "0-1"]
[WhiteElo "2595"]
[BlackElo "2245"]
[TimeControl "180+1"]
[EndTime "14:07:53 PDT"]
[Termination "miraitrunks won by resignation"]

1. Nf3 {[%clk 0:02:59.6]} 1... c5 {[%clk 0:02:59.8]} 2. b3 {[%clk 0:02:59.8]}
2... d5 {[%clk 0:02:59.6]} 3. e3 {[%clk 0:03:00.2]} 3... Nc6 {[%clk 0:02:59.9]}
4. Bb2 {[%clk 0:03:00.9]} 4... Bg4 {[%clk 0:02:59.7]} 5. Bb5 {[%clk 0:03:01]}
5... Nf6 {[%clk 0:02:58.1]} 6. h3 {[%clk 0:03:01.4]} 6... Bh5 {[%clk 0:02:56.4]}
7. g4 {[%clk 0:03:01.7]} 7... Bg6 {[%clk 0:02:56.2]} 8. Ne5 {[%clk 0:03:02.3]}
8... Qc7 {[%clk 0:02:56.3]} 9. f4 {[%clk 0:02:57.1]} 9... Be4 {[%clk 0:02:54.8]}
10. Rg1 {[%clk 0:02:42.4]} 10... e6 {[%clk 0:02:45.3]} 11. g5 {[%clk 0:02:41.1]}
11... Nd7 {[%clk 0:02:43.8]} 12. Bxc6 {[%clk 0:02:37.4]} 12... bxc6 {[%clk
0:02:44.7]} 13. d3 {[%clk 0:02:32.1]} 13... Bf5 {[%clk 0:02:43.6]} 14. Qf3
{[%clk 0:02:30.3]} 14... Qa5+ {[%clk 0:02:32.6]} 15. Nd2 {[%clk 0:02:27.8]}
15... Nxe5 {[%clk 0:02:32.6]} 16. Bxe5 {[%clk 0:02:21.1]} 16... O-O-O {[%clk
0:02:21.9]} 17. a3 {[%clk 0:01:41.7]} 17... h6 {[%clk 0:02:14.6]} 18. b4 {[%clk
0:01:30.6]} 18... Qa4 {[%clk 0:02:05.6]} 19. e4 {[%clk 0:00:56.6]} 19... dxe4
{[%clk 0:01:56.7]} 20. dxe4 {[%clk 0:00:52.4]} 20... Qxc2 {[%clk 0:01:55.6]} 21.
Rg2 {[%clk 0:00:52.6]} 21... Rd3 {[%clk 0:01:18.7]} 22. Qd1 {[%clk 0:00:34.9]}
22... Qxd1+ {[%clk 0:01:11.3]} 23. Rxd1 {[%clk 0:00:35.8]} 23... Bxh3 {[%clk
0:01:10.1]} 24. Rg1 {[%clk 0:00:27.5]} 24... hxg5 {[%clk 0:01:09.8]} 25. Nc4
{[%clk 0:00:20.6]} 25... Rxd1+ {[%clk 0:01:04.7]} 26. Kxd1 {[%clk 0:00:21.5]}
26... cxb4 {[%clk 0:01:05]} 27. axb4 {[%clk 0:00:18.5]} 27... Bxb4 {[%clk
0:01:05.9]} 28. fxg5 {[%clk 0:00:15.4]} 28... Rd8+ {[%clk 0:01:05.5]} 29. Kc2
{[%clk 0:00:14.1]} 29... g6 {[%clk 0:00:59.4]} 30. Bf6 {[%clk 0:00:14.3]} 30...
Rd7 {[%clk 0:00:55.1]} 31. Kb3 {[%clk 0:00:10.2]} 31... a5 {[%clk 0:00:54.6]}
32. Nb6+ {[%clk 0:00:09.6]} 32... Kc7 {[%clk 0:00:54.3]} 33. Nxd7 {[%clk
0:00:10.5]} 33... Kxd7 {[%clk 0:00:54.4]} 34. Kc4 {[%clk 0:00:07.5]} 34... e5
{[%clk 0:00:50.5]} 35. Bxe5 {[%clk 0:00:04.6]} 35... Be6+ {[%clk 0:00:51.4]} 36.
Kd4 {[%clk 0:00:04.6]} 36... c5+ {[%clk 0:00:51.8]} 37. Kd3 {[%clk 0:00:03.8]}
37... Kc6 {[%clk 0:00:52.7]} 38. Bc3 {[%clk 0:00:03.4]} 38... Kb5 {[%clk
0:00:50.9]} 39. Rb1 {[%clk 0:00:02.5]} 39... Ba2 {[%clk 0:00:47.8]} 40. Rb2
{[%clk 0:00:02.4]} 40... Bc4+ {[%clk 0:00:44.4]} 41. Kd2 {[%clk 0:00:02.4]}
41... a4 {[%clk 0:00:40.8]} 42. Rb1 {[%clk 0:00:02.9]} 42... a3 {[%clk
0:00:40.9]} 43. Ra1 {[%clk 0:00:03]} 43... Ka4 {[%clk 0:00:40.6]} 44. Kc2 {[%clk
0:00:03.4]} 44... Bb3+ {[%clk 0:00:40.6]} 45. Kd2 {[%clk 0:00:03.9]} 45... Bc4
{[%clk 0:00:40.4]} 46. Kc2 {[%clk 0:00:03.9]} 46... Be2 {[%clk 0:00:37.1]} 47.
Kd2 {[%clk 0:00:03.8]} 47... Bf3 {[%clk 0:00:37.1]} 48. e5 {[%clk 0:00:03.6]}
48... Be4 {[%clk 0:00:35.2]} 49. Rc1 {[%clk 0:00:02.4]} 49... Kb3 {[%clk
0:00:35.2]} 50. Ra1 {[%clk 0:00:02.8]} 50... a2 {[%clk 0:00:35.7]} 51. Bxb4
{[%clk 0:00:02]} 51... cxb4 {[%clk 0:00:35.9]} 52. Kc1 {[%clk 0:00:01.9]} 52...
Bb1 {[%clk 0:00:34.9]} 53. e6 {[%clk 0:00:02]} 53... fxe6 {[%clk 0:00:34.9]} 54.
Rxa2 {[%clk 0:00:01.7]} 54... Bxa2 {[%clk 0:00:34.6]} 0-1